bitfinex-derivatives/quotes_BTCF0:USTF0_20241025
["timestamp","ask_amount","ask_price","bid_price","bid_amount"]
[1729865691294,0.07523015,68494.0,68492.0,0.073041]
[1729865691482,0.00219115,68494.0,68487.0,0.14038464]
[1729865691789,0.00219115,68494.0,68493.0,0.07304]
[1729865692000,0.00219115,68494.0,68493.0,0.43384]
[1729865693494,0.00219115,68494.0,68493.0,0.45541482]
[1729865695986,0.00219115,68494.0,68493.0,0.09461482]
[1729865697697,0.07523015,68494.0,68489.0,0.073043]
[1729865698002,0.14038464,68492.0,68490.0,0.073043]
[1729865698200,0.14038464,68492.0,68486.0,0.3608]
[1729865698499,0.14038464,68492.0,68491.0,0.073042]
[1729865700298,0.14038464,68492.0,68487.0,0.073046]
[1729865700493,0.14038464,68488.0,68486.0,0.38202784]
[1729865700694,0.21342964,68488.0,68487.0,0.073046]
[1729865701200,0.00219115,68494.0,68493.0,0.07304]
[1729865701408,0.00219115,68494.0,68493.0,0.14038464]
[1729865701705,0.00219115,68494.0,68493.0,0.21342464]
[1729865702096,0.14257579,68494.0,68493.0,0.07304]
[1729865703001,0.14257579,68494.0,68493.0,0.0942489]
[1729865703298,0.00219115,68494.0,68493.0,0.0942489]
[1729865704200,0.00219115,68494.0,68493.0,0.4550489]
[1729865704708,0.00219115,68494.0,68493.0,0.59543354]
[1729865704906,0.77518,68496.0,68495.0,0.073038]
[1729865705200,0.77518,68496.0,68495.0,0.433838]
[1729865710005,0.77518,68496.0,68493.0,0.0942489]
[1729865710202,0.77518,68496.0,68485.0,0.073048]
[1729865710203,0.073045,68488.0,68485.0,0.073048]
[1729865710400,0.073046,68487.0,68486.0,0.073047]
[1729865710709,0.77518,68496.0,68486.0,0.14038464]
[1729865710909,0.77518,68496.0,68495.0,0.073038]
[1729865711706,0.77518,68496.0,68495.0,0.433838]
[1729865711898,0.77518,68496.0,68495.0,0.57422264]
[1729865712612,0.35108,68496.0,68495.0,0.57422264]
[1729865713301,0.00219032,68510.0,68509.0,0.073023]
[1729865713510,0.00219032,68510.0,68509.0,0.433823]
[1729865715300,0.14038464,68510.0,68505.0,0.073026]
[1729865715498,0.14038464,68510.0,68506.0,0.073026]
[1729865715698,0.14038464,68510.0,68495.0,0.38411681]
[1729865715699,0.14038464,68507.0,68496.0,0.79832799]
[1729865715901,0.14038464,68500.0,68499.0,0.073033]
[1729865716098,0.14038464,68500.0,68496.0,0.3814811]
[1729865716311,0.14038464,68500.0,68496.0,0.4545171]
[1729865716803,0.073035,68498.0,68496.0,0.3814811]
[1729865717009,0.14038464,68497.0,68495.0,0.00218981]
[1729865717315,0.073037,68496.0,68495.0,0.00218981]
[1729865717611,0.433837,68496.0,68495.0,0.00218981]
[1729865718502,0.14038464,68493.0,68488.0,0.3608]
[1729865718707,0.21342864,68489.0,68486.0,0.02139438]
[1729865718899,0.14038464,68489.0,68482.0,0.3608]
[1729865719102,0.3608,68522.0,68488.0,0.50118464]
[1729865719313,0.0857,68519.0,68505.0,0.14038464]
[1729865719508,0.1354484,68518.0,68512.0,0.073019]
[1729865719815,0.0882,68518.0,68515.0,0.073016]
[1729865720011,0.0882,68518.0,68516.0,0.433815]
[1729865720312,0.0857,68519.0,68516.0,0.3608]
[1729865720611,0.0857,68519.0,68517.0,0.073013]
[1729865720812,0.0857,68519.0,68518.0,0.073013]
[1729865722610,0.0857,68519.0,68516.0,0.3608]
[1729865722817,0.158712,68519.0,68516.0,0.433814]
[1729865723129,0.21041924,68518.0,68517.0,0.073014]
[1729865723909,0.0857,68519.0,68516.0,0.3608]
[1729865724212,0.0857,68519.0,68518.0,0.073013]
[1729865727406,0.073032,68501.0,68498.0,0.073034]
[1729865727606,0.21041924,68506.0,68495.0,0.21041924]
[1729865727810,0.0857,68519.0,68505.0,0.21041924]
[1729865727811,0.10693467,68519.0,68505.0,0.21041924]
[1729865728010,0.10693467,68519.0,68514.0,0.073017]
[1729865728011,0.158712,68519.0,68514.0,0.073017]
[1729865728211,0.073013,68518.0,68515.0,0.073016]
[1729865728821,0.0857,68519.0,68515.0,0.073016]
[1729865729112,0.073015,68517.0,68515.0,0.073016]
[1729865729420,0.0857,68519.0,68515.0,0.073016]
[1729865729421,0.073015,68516.0,68515.0,0.073016]
[1729865730009,0.28343424,68516.0,68515.0,0.073016]
[1729865730209,0.21041924,68516.0,68515.0,0.073016]
[1729865732125,0.28343424,68516.0,68515.0,0.073016]
[1729865732326,0.21041924,68516.0,68515.0,0.073016]
[1729865733022,0.28343424,68516.0,68515.0,0.073016]
[1729865733230,0.21041924,68516.0,68515.0,0.073016]
[1729865735826,0.36299009,68520.0,68512.0,0.38139719]
[1729865735827,0.00219009,68520.0,68519.0,0.073012]
[1729865736031,0.0845,68524.0,68521.0,0.07301]
[1729865736229,0.21041924,68537.0,68523.0,0.3608]
[1729865736531,0.072995,68535.0,68534.0,0.072996]
[1729865736730,0.0862,68536.0,68524.0,0.0876]
[1729865736922,0.073001,68530.0,68524.0,0.0876]
[1729865737123,0.073002,68529.0,68527.0,0.073003]
[1729865737319,0.073002,68529.0,68528.0,0.073003]
[1729865737627,0.3608,68531.0,68530.0,0.073]
[1729865737818,0.4378,68530.0,68504.0,0.04273283]
[1729865738019,0.21041924,68505.0,68498.0,0.3608]
[1729865738326,0.57121924,68515.0,68498.0,0.5918737]
[1729865738630,0.073021,68511.0,68510.0,0.073021]
[1729865738815,0.57121924,68515.0,68499.0,0.58772]
[1729865738816,0.07302,68512.0,68499.0,0.58772]
[1729865739013,0.07302,68512.0,68511.0,0.073021]
[1729865739218,0.57209924,68515.0,68499.0,0.4484]
[1729865739419,0.21041924,68507.0,68506.0,0.073026]
[1729865739818,0.157621,68511.0,68499.0,0.4484]
[1729865740022,0.073022,68510.0,68509.0,0.073022]
[1729865740617,0.0892,68514.0,68499.0,0.4484]
[1729865740818,0.3608,68515.0,68507.0,0.3608]
[1729865741027,0.00219063,68518.0,68513.0,0.3608]
[1729865741235,0.00219063,68518.0,68517.0,0.073014]
[1729865741717,0.0909,68522.0,68521.0,0.07301]
[1729865741918,0.1738,68530.0,68529.0,0.073001]
[1729865742129,0.45721924,68530.0,68529.0,0.073001]
[1729865742327,0.38707055,68530.0,68529.0,0.073001]
[1729865742627,0.38707055,68530.0,68526.0,0.073004]
[1729865742628,0.073003,68528.0,68526.0,0.073004]
[1729865742840,0.14027055,68527.0,68526.0,0.073004]
[1729865743130,0.21327455,68527.0,68526.0,0.073004]
[1729865743725,0.14027055,68527.0,68520.0,0.3608]
[1729865743933,0.53544,68530.0,68520.0,0.3608]
[1729865743934,0.073006,68525.0,68523.0,0.073007]
[1729865744431,0.07301,68521.0,68520.0,0.073011]
[1729865744628,0.3608,68528.0,68518.0,0.073012]
[1729865744827,0.4443,68520.0,68518.0,0.073012]
[1729865745123,0.14027055,68519.0,68518.0,0.073012]
[1729865745927,0.0008,68520.0,68519.0,0.073012]
[1729865746324,0.14027055,68524.0,68523.0,0.073008]
[1729865748734,0.14027055,68524.0,68519.0,0.05697711]
[1729865748735,0.07301,68521.0,68519.0,0.05697711]
[1729865748927,0.3608,68527.0,68519.0,0.04313077]
[1729865748928,0.21328155,68520.0,68519.0,0.04313077]
[1729865749231,0.50107055,68520.0,68519.0,0.073012]
[1729865749428,0.073014,68517.0,68516.0,0.02090369]
[1729865749629,0.073014,68517.0,68516.0,0.073015]
[1729865750532,0.50107055,68520.0,68513.0,0.073018]
[1729865750533,0.073018,68514.0,68513.0,0.073018]
[1729865750736,0.14027055,68514.0,68513.0,0.073018]
[1729865753435,0.0844,68516.0,68513.0,0.073018]
[1729865753436,0.14027055,68530.0,68525.0,0.073006]
[1729865753626,0.0471293,68529.0,68528.0,0.073003]
[1729865753833,0.14027055,68529.0,68528.0,0.073003]
[1729865754138,0.66353055,68529.0,68512.0,0.00218937]
[1729865754334,0.14027055,68513.0,68512.0,0.07520937]
[1729865754838,0.3608,68523.0,68512.0,0.02283689]
[1729865755041,0.18686041,68522.0,68521.0,0.07301]
[1729865755637,0.25986941,68522.0,68521.0,0.07301]
[1729865756727,0.21327955,68522.0,68521.0,0.07301]
[1729865757038,0.073005,68527.0,68526.0,0.073005]
[1729865757341,0.21327555,68527.0,68526.0,0.073005]
[1729865759040,0.14027055,68527.0,68526.0,0.073005]
[1729865759340,0.21327455,68527.0,68526.0,0.073005]
[1729865759643,0.14027055,68527.0,68526.0,0.073005]
[1729865760339,0.14027055,68527.0,68522.0,0.3608]
[1729865760340,0.072999,68532.0,68531.0,0.072999]
[1729865760540,0.072999,68532.0,68522.0,0.54420132]
[1729865760541,0.14027055,68531.0,68530.0,0.073]
[1729865762133,0.21326955,68531.0,68530.0,0.073]
[1729865763034,0.21326955,68531.0,68530.0,0.09407755]
[1729865763035,0.14027055,68531.0,68530.0,0.09407755]
[1729865763637,0.21326955,68531.0,68530.0,0.09407755]
[1729865764039,0.14027055,68531.0,68530.0,0.09407755]
[1729865764947,0.0891,68536.0,68530.0,0.45487755]
[1729865765138,0.0861,68546.0,68545.0,0.072984]
[1729865765447,0.072971,68558.0,68556.0,0.072972]
[1729865765745,0.00218831,68568.0,68561.0,0.072967]
[1729865765942,0.14027055,68563.0,68557.0,0.3608]
[1729865766132,0.072966,68562.0,68561.0,0.072967]
[1729865766337,0.072961,68567.0,68558.0,0.07297]
[1729865766639,0.072966,68562.0,68561.0,0.072967]
[1729865767633,0.072971,68558.0,68557.0,0.45666006]
[1729865767849,0.072971,68558.0,68557.0,0.09438006]
[1729865768237,0.14027055,68559.0,68545.0,0.3608]
[1729865768435,0.3608,68561.0,68545.0,0.3608]
[1729865768436,0.072983,68546.0,68545.0,0.072984]
[1729865768636,0.072983,68546.0,68545.0,0.09356219]
[1729865768836,0.3608,68551.0,68542.0,0.00218825]
[1729865769043,0.072987,68543.0,68542.0,0.00218825]
[1729865769251,0.3608,68551.0,68542.0,0.02314927]
[1729865769543,0.3608,68551.0,68550.0,0.21324955]
[1729865769846,0.0837,68557.0,68550.0,0.50107055]
[1729865770049,0.0837,68557.0,68556.0,0.072973]
[1729865770544,0.00084,68560.0,68559.0,0.072969]
[1729865770740,0.07514831,68568.0,68566.0,0.072962]
[1729865770947,0.072963,68566.0,68563.0,0.14027055]
[1729865771141,0.00218831,68568.0,68563.0,0.14027055]
[1729865771337,0.072962,68567.0,68563.0,0.14027055]
[1729865771540,0.072962,68567.0,68566.0,0.072962]
[1729865771945,0.00218831,68568.0,68567.0,0.072961]
[1729865772144,0.00218831,68568.0,68567.0,0.21323155]
[1729865772352,0.07514831,68568.0,68567.0,0.21323155]
[1729865772643,0.07514831,68568.0,68567.0,0.072961]
[1729865772838,0.00218831,68568.0,68567.0,0.072961]
[1729865773040,0.07514831,68568.0,68567.0,0.072961]
[1729865773440,0.3608,68571.0,68567.0,0.072961]
[1729865773441,0.072959,68570.0,68569.0,0.072958]
[1729865774144,0.3608,68571.0,68567.0,0.14027055]
[1729865774341,0.50107055,68573.0,68564.0,0.14027055]
[1729865774541,0.50107055,68573.0,68565.0,0.072963]
[1729865774542,0.07296,68568.0,68565.0,0.072963]
[1729865774749,0.07296,68568.0,68564.0,0.14027055]
[1729865774946,0.07296,68568.0,68566.0,0.072962]
[1729865775748,0.072956,68572.0,68567.0,0.14027055]
[1729865776046,0.07296,68568.0,68567.0,0.14027055]
[1729865776246,0.07296,68568.0,68565.0,0.072963]
[1729865776445,0.14027055,68569.0,68563.0,0.02127707]
[1729865776747,0.3608,68581.0,68568.0,0.3608]
[1729865776951,0.3608,68581.0,68573.0,0.14027055]
[1729865776952,0.14027055,68581.0,68573.0,0.14027055]
[1729865777144,0.14027055,68577.0,68576.0,0.072951]
[1729865777342,0.3608,68580.0,68570.0,0.14027055]
[1729865777541,0.14027055,68577.0,68574.0,0.072953]
[1729865777752,0.14027055,68577.0,68576.0,0.072951]
[1729865777953,0.14027055,68577.0,68572.0,0.072955]
[1729865777954,0.072952,68576.0,68572.0,0.072955]
[1729865778249,0.3608,68580.0,68578.0,0.072949]
[1729865778453,0.072948,68579.0,68576.0,0.072951]
[1729865778656,0.3608,68580.0,68577.0,0.07295]
[1729865778657,0.072949,68578.0,68577.0,0.07295]
[1729865779446,0.3608,68579.0,68558.0,0.14027055]
[1729865779748,0.21323155,68567.0,68557.0,0.27899055]
[1729865779953,0.21323155,68567.0,68563.0,0.072964]
[1729865780144,0.072961,68567.0,68564.0,0.072964]
[1729865780341,0.072961,68567.0,68562.0,0.14027055]
[1729865781444,0.21323155,68567.0,68555.0,0.3622]
[1729865781650,0.21323155,68567.0,68557.0,0.072971]
[1729865781942,0.21323155,68567.0,68556.0,0.07515929]
[1729865782142,0.21323155,68567.0,68556.0,0.00218729]
[1729865782942,0.21323155,68567.0,68556.0,0.07515929]
[1729865783142,0.65075155,68567.0,68556.0,0.07515929]
[1729865783547,0.21323155,68567.0,68556.0,0.07515929]
[1729865784251,0.21323155,68567.0,68563.0,0.072965]
[1729865784655,0.21323155,68567.0,68559.0,0.072969]
[1729865784858,0.65075155,68567.0,68559.0,0.072969]
[1729865785249,0.21323155,68567.0,68559.0,0.072969]
[1729865785448,0.21323155,68567.0,68559.0,0.072968]
[1729865785751,0.21323155,68567.0,68560.0,0.072968]
[1729865786446,0.21323155,68567.0,68556.0,0.00218729]
[1729865786648,0.21323155,68567.0,68561.0,0.072966]
[1729865786954,0.21323155,68567.0,68557.0,0.072971]
[1729865787155,0.21323155,68567.0,68556.0,0.00218729]
[1729865788059,0.072961,68567.0,68561.0,0.3608]
[1729865788243,0.0903,68568.0,68567.0,0.072961]
[1729865788549,0.0903,68568.0,68561.0,0.50107055]
[1729865788550,0.14027055,68570.0,68566.0,0.5014]
[1729865788752,0.14027055,68570.0,68569.0,0.072959]
[1729865788946,0.3608,68573.0,68572.0,0.072956]
[1729865789146,0.3608,68587.0,68583.0,0.072944]
[1729865789342,0.14027055,68587.0,68583.0,0.072943]
[1729865789556,0.14027055,68587.0,68580.0,0.3608]
[1729865789758,0.072939,68588.0,68585.0,0.072942]
[1729865789950,0.072939,68588.0,68580.0,0.3608]
[1729865789951,0.072939,68588.0,68587.0,0.07294]
[1729865790147,0.072943,68584.0,68580.0,0.3608]
[1729865790346,0.072947,68581.0,68575.0,0.13872]
[1729865790546,0.072947,68581.0,68579.0,0.072948]
[1729865790962,0.14027055,68580.0,68579.0,0.072948]
[1729865792954,0.14027055,68584.0,68583.0,0.072944]
[1729865794559,0.26239686,68584.0,68583.0,0.072944]
[1729865794949,0.072945,68582.0,68579.0,0.072948]
[1729865795152,0.14027055,68580.0,68579.0,0.072948]
[1729865795357,0.18945386,68580.0,68579.0,0.072948]
[1729865795755,0.072941,68586.0,68575.0,0.14027055]
[1729865795957,0.50107055,68587.0,68586.0,0.072941]
[1729865796261,0.55029653,68587.0,68580.0,0.3608]
[1729865796449,0.50107055,68587.0,68586.0,0.072941]
[1729865796765,0.50107055,68587.0,68578.0,0.13872]
[1729865797064,0.14027055,68581.0,68576.0,0.00552992]
[1729865797358,0.14027055,68581.0,68580.0,0.072947]
[1729865797559,0.04876923,68581.0,68580.0,0.072947]
[1729865797758,0.54983978,68581.0,68576.0,0.00552992]
[1729865797966,0.54983978,68581.0,68575.0,0.5]
[1729865797967,0.072951,68576.0,68575.0,0.5]
[1729865798168,0.12172023,68576.0,68575.0,0.5]
[1729865798557,0.17747768,68576.0,68575.0,0.5]
[1729865798862,0.27237768,68576.0,68575.0,0.5]
[1729865799059,0.41264823,68576.0,68575.0,0.5]
[1729865799261,0.85012823,68576.0,68575.0,0.5]
[1729865799763,0.85012823,68576.0,68575.0,0.01256708]
[1729865800356,0.84833511,68576.0,68575.0,0.01256708]
[1729865800762,0.91124861,68576.0,68575.0,0.00455836]
[1729865801362,1.07133965,68576.0,68575.0,0.00455836]
[1729865801562,0.79314034,68576.0,68575.0,0.00455836]
[1729865801762,0.072961,68567.0,68559.0,0.072969]
[1729865801966,0.93483155,68567.0,68559.0,0.072969]
[1729865802155,1.37235155,68567.0,68566.0,0.16006708]
[1729865802357,0.072972,68557.0,68546.0,0.0889]
[1729865802555,0.072972,68557.0,68540.0,0.096]
[1729865802556,0.072985,68544.0,68540.0,0.072989]
[1729865802762,0.072985,68544.0,68541.0,0.072988]
[1729865803369,0.871465,68544.0,68534.0,0.072995]
[1729865803668,0.871465,68544.0,68532.0,0.00218863]
[1729865804366,1.61173555,68544.0,68525.0,0.073006]
[1729865804557,0.21327555,68526.0,68521.0,0.073009]
[1729865804855,0.073008,68523.0,68522.0,0.073008]
[1729865805056,0.3608,68528.0,68517.0,0.073014]
[1729865805257,0.3608,68528.0,68514.0,0.3608]
[1729865805258,0.43381,68521.0,68514.0,0.3608]
[1729865805457,0.073011,68520.0,68514.0,0.433817]
[1729865805677,0.073011,68520.0,68514.0,0.3608]
[1729865805967,0.14027055,68515.0,68514.0,0.433817]
[1729865806559,0.3608,68521.0,68514.0,0.3608]
[1729865806859,0.14027055,68528.0,68518.0,0.14027055]
[1729865807057,0.3608,68531.0,68523.0,0.14027055]
[1729865807371,0.3608,68531.0,68515.0,0.073016]
[1729865807372,0.3608,68531.0,68530.0,0.21327055]
[1729865807665,0.50107055,68531.0,68530.0,0.073]
[1729865807867,0.073,68530.0,68514.0,0.28115055]
[1729865808071,0.50107055,68531.0,68508.0,0.14306945]
[1729865808072,0.14027055,68515.0,68508.0,0.14306945]
[1729865808367,0.14027055,68515.0,68514.0,0.073017]
[1729865808568,0.50107055,68515.0,68514.0,0.073017]
[1729865810469,0.3608,68515.0,68514.0,0.073017]
[1729865810672,0.3608,68515.0,68514.0,0.21328755]
[1729865811167,0.50107055,68515.0,68514.0,0.073017]
[1729865811464,0.50107055,68515.0,68508.0,0.00218945]
[1729865811465,0.073021,68511.0,68508.0,0.00218945]
[1729865811665,0.50107055,68515.0,68508.0,0.00218945]
[1729865811666,0.57409355,68509.0,68508.0,0.07521345]
[1729865811969,0.14027055,68509.0,68508.0,0.07521345]
[1729865812168,0.50107055,68509.0,68508.0,0.07521345]
[1729865812470,0.36168,68515.0,68514.0,0.073017]
[1729865812874,0.3608,68515.0,68514.0,0.073017]
[1729865813179,0.3608,68515.0,68508.0,0.00218945]
[1729865813360,0.14027055,68511.0,68508.0,0.00218945]
[1729865813962,0.14027055,68511.0,68510.0,0.073022]
[1729865814868,0.14027055,68514.0,68513.0,0.073018]
[1729865815058,0.14027055,68514.0,68508.0,0.00218945]
[1729865815059,0.3608,68515.0,68514.0,0.073017]
[1729865815976,0.50107055,68515.0,68514.0,0.073017]
[1729865816864,0.3608,68515.0,68514.0,0.073017]
[1729865817469,0.3608,68523.0,68515.0,0.073016]
[1729865817667,0.073003,68528.0,68524.0,0.073006]
[1729865817871,0.073006,68525.0,68516.0,0.0937]
[1729865818079,0.14027055,68523.0,68516.0,0.0937]
[1729865818379,0.14027055,68523.0,68522.0,0.073008]
[1729865819964,0.14027055,68526.0,68525.0,0.073006]
[1729865820273,0.3608,68530.0,68516.0,0.0937]
[1729865820274,0.50107055,68530.0,68529.0,0.073001]
[1729865821169,0.57407055,68530.0,68529.0,0.073001]
[1729865821477,0.50107055,68530.0,68529.0,0.073001]
[1729865821772,0.073004,68527.0,68518.0,0.3608]
[1729865821978,0.50107055,68530.0,68519.0,0.073011]
[1729865821979,0.14027055,68520.0,68519.0,0.073011]
[1729865822370,0.3608,68522.0,68516.0,0.0937]
[1729865822572,0.3608,68522.0,68521.0,0.07301]
[1729865822976,0.3608,68522.0,68512.0,0.098]
[1729865823168,0.14027055,68521.0,68516.0,0.073015]
[1729865823369,0.3608,68530.0,68518.0,0.14027055]
[1729865823370,0.21327755,68525.0,68518.0,0.14027055]
[1729865823571,0.3608,68521.0,68520.0,0.073011]
[1729865823775,0.073004,68527.0,68526.0,0.073004]
[1729865823968,0.073005,68526.0,68525.0,0.073005]
[1729865824384,0.14027055,68527.0,68514.0,0.14027055]
[1729865824679,0.14027055,68523.0,68514.0,0.14027055]
[1729865824979,0.14027055,68523.0,68522.0,0.073009]
[1729865825967,0.21327855,68523.0,68522.0,0.073009]
[1729865826582,0.14027055,68523.0,68522.0,0.073009]
[1729865826879,0.3608,68530.0,68529.0,0.073001]
[1729865827877,0.3608,68537.0,68529.0,0.073001]
[1729865828073,0.3608,68537.0,68536.0,0.072994]
[1729865828997,0.00218946,68540.0,68534.0,0.14027055]
[1729865829170,0.00218946,68540.0,68539.0,0.072991]
[1729865829577,0.00218946,68540.0,68539.0,0.171391]
[1729865829771,0.3608,68548.0,68539.0,0.532191]
[1729865830077,0.3608,68548.0,68547.0,0.072982]
[1729865831586,0.072987,68544.0,68543.0,0.072986]
[1729865831777,0.072987,68544.0,68539.0,0.074391]
[1729865831778,0.07299,68540.0,68539.0,0.074391]
[1729865832081,0.07299,68540.0,68530.0,0.0896]
[1729865832082,0.072993,68537.0,68536.0,0.072993]
[1729865832379,0.21326355,68537.0,68536.0,0.072993]
[1729865832581,0.3608,68545.0,68536.0,0.072993]
[1729865832582,0.14027055,68544.0,68536.0,0.072993]
[1729865832785,0.3608,68545.0,68544.0,0.072985]
[1729865833281,0.14027055,68555.0,68554.0,0.072975]
[1729865833681,0.14027055,68560.0,68554.0,0.072975]
[1729865833990,0.3608,68563.0,68561.0,0.072967]
[1729865834284,0.3608,68563.0,68555.0,0.3608]
[1729865834487,0.14027055,68558.0,68557.0,0.072972]
[1729865834873,0.21324155,68558.0,68557.0,0.072972]
[1729865835581,0.21324155,68558.0,68553.0,0.072976]
[1729865835778,0.14027055,68554.0,68553.0,0.072976]
[1729865836286,0.072978,68552.0,68549.0,0.07298]
[1729865836485,0.14027055,68550.0,68549.0,0.07298]
[1729865836988,0.21324955,68550.0,68549.0,0.07298]
[1729865837284,0.21324755,68553.0,68550.0,0.072979]
[1729865837589,0.3608,68558.0,68554.0,0.072975]
[1729865837590,0.072974,68555.0,68554.0,0.072975]
[1729865838290,0.3608,68558.0,68550.0,0.14027055]
[1729865838488,0.433771,68558.0,68557.0,0.072972]
[1729865839289,0.3608,68558.0,68557.0,0.072972]
[1729865839487,0.3608,68558.0,68546.0,0.433783]
[1729865839488,0.3608,68558.0,68546.0,0.36224]
[1729865839789,0.14027055,68555.0,68554.0,0.072974]
[1729865840080,0.3608,68557.0,68556.0,0.072973]
[1729865840287,0.0021887,68562.0,68561.0,0.072967]
[1729865840678,0.072955,68573.0,68572.0,0.072955]
[1729865840978,0.36156,68574.0,68573.0,0.072955]
[1729865840979,0.3616,68574.0,68573.0,0.072955]
[1729865841179,0.3608,68574.0,68573.0,0.072955]
[1729865841987,0.3608,68574.0,68573.0,0.21322555]
[1729865842489,0.00218806,68588.0,68586.0,0.07294]
[1729865842788,0.00218806,68588.0,68586.0,0.072941]
[1729865842789,0.072941,68587.0,68586.0,0.072941]
[1729865843791,0.00218806,68588.0,68579.0,0.3608]
[1729865844109,0.072947,68580.0,68579.0,0.3608]
[1729865844390,0.14027055,68581.0,68573.0,0.3608]
[1729865844594,0.0929,68586.0,68576.0,0.072951]
[1729865844595,0.07295,68577.0,68576.0,0.072951]
[1729865845190,0.00218806,68588.0,68576.0,0.43748]
[1729865845390,0.07512706,68588.0,68587.0,0.07294]
[1729865845786,0.21539761,68588.0,68587.0,0.07294]
[1729865846286,0.14245861,68588.0,68587.0,0.07294]
[1729865846492,0.14245861,68588.0,68584.0,0.072943]
[1729865846691,0.21321355,68585.0,68584.0,0.072943]
[1729865846988,0.21321355,68585.0,68580.0,0.3608]
[1729865846989,0.072946,68581.0,68580.0,0.3608]
[1729865847188,0.21321655,68581.0,68580.0,0.3608]
[1729865847895,0.21321655,68581.0,68580.0,0.433747]
[1729865848287,0.21321655,68581.0,68580.0,0.3608]
[1729865848785,0.433741,68586.0,68577.0,0.14027055]
[1729865848987,0.14027055,68584.0,68580.0,0.072947]
[1729865849188,0.072946,68581.0,68577.0,0.07295]
[1729865849489,0.21321655,68581.0,68577.0,0.07295]
[1729865849691,0.14027055,68581.0,68573.0,0.50247055]
[1729865849894,0.14027055,68581.0,68573.0,0.50107055]
[1729865850098,0.2805411,68574.0,68559.0,0.3608]
[1729865850296,0.072971,68558.0,68557.0,0.00218792]
[1729865850886,0.14027055,68563.0,68557.0,0.00218792]
[1729865851287,0.21323955,68560.0,68557.0,0.00218792]
[1729865851493,0.072969,68560.0,68557.0,0.00218792]
[1729865851684,0.072971,68558.0,68557.0,0.00218792]
[1729865852995,0.072971,68558.0,68557.0,0.07515992]
[1729865853202,0.170655,68573.0,68557.0,0.51275892]
[1729865853393,0.170655,68573.0,68569.0,0.14027055]
[1729865853394,0.072957,68572.0,68569.0,0.14027055]
[1729865853603,0.072958,68570.0,68569.0,0.14027055]
[1729865854107,0.072958,68570.0,68564.0,0.3608]
[1729865854108,0.072963,68565.0,68564.0,0.3608]
[1729865854399,0.14027055,68570.0,68558.0,0.14027055]
[1729865854898,0.072969,68559.0,68558.0,0.14027055]
[1729865855500,0.50107055,68559.0,68557.0,0.00218792]
[1729865855710,0.50107055,68559.0,68538.0,0.072992]
[1729865856004,0.072996,68534.0,68533.0,0.3608]
[1729865856192,0.073004,68528.0,68526.0,0.14027055]
[1729865856396,0.072988,68542.0,68527.0,0.2103988]
[1729865856397,0.0899,68538.0,68527.0,0.2103988]
[1729865856596,0.0899,68538.0,68530.0,0.073]
[1729865856597,0.073,68531.0,68530.0,0.073]
[1729865858403,0.073003,68528.0,68527.0,0.5725988]
[1729865858702,0.073003,68528.0,68527.0,0.6442028]
[1729865859101,0.073003,68528.0,68527.0,0.3608]
[1729865859298,0.073007,68524.0,68523.0,0.073007]
[1729865859495,0.073001,68529.0,68523.0,0.2103988]
[1729865859693,0.073001,68529.0,68528.0,0.073003]
[1729865859895,0.073004,68527.0,68523.0,0.2103988]
[1729865860091,0.072999,68531.0,68523.0,0.2103988]
[1729865860305,0.0899,68538.0,68528.0,0.2103988]
[1729865860608,0.0899,68538.0,68537.0,0.3608]
[1729865860900,0.00218915,68548.0,68547.0,0.072982]
[1729865861091,0.00218915,68548.0,68547.0,0.2833808]
[1729865861602,0.07517015,68548.0,68547.0,0.072982]
[1729865861807,0.00218915,68548.0,68547.0,0.072982]
[1729865862504,0.07517015,68548.0,68547.0,0.072982]
[1729865864500,0.00218915,68548.0,68547.0,0.072982]
[1729865864805,0.07517015,68548.0,68547.0,0.072982]
[1729865866008,0.07517015,68548.0,68547.0,0.433782]
[1729865866304,0.07517015,68548.0,68547.0,0.072982]
[1729865866496,0.00218915,68548.0,68547.0,0.072982]
[1729865867999,0.3608,68559.0,68547.0,0.2103988]
[1729865868210,0.3608,68559.0,68543.0,0.36232]
[1729865868211,0.43377,68559.0,68558.0,0.2833698]
[1729865868702,0.43377,68559.0,68558.0,0.072971]
[1729865868917,0.3608,68559.0,68547.0,0.3608]
[1729865869101,0.07298,68551.0,68550.0,0.072978]
[1729865869405,0.072983,68548.0,68547.0,0.072982]
[1729865869709,0.072984,68545.0,68544.0,0.00218828]
[1729865869906,0.072984,68545.0,68544.0,0.07517328]
[1729865870311,0.433784,68545.0,68544.0,0.00218828]
[1729865870506,0.518384,68545.0,68544.0,0.00218828]
[1729865870904,0.518384,68545.0,68544.0,0.07517328]
[1729865871506,0.518384,68545.0,68544.0,0.00218828]
[1729865871805,0.518384,68545.0,68530.0,0.3608]
[1729865871806,0.4454,68545.0,68530.0,0.3608]
[1729865872008,0.072999,68531.0,68530.0,0.4338]
[1729865872408,0.072999,68531.0,68530.0,0.073]
[1729865872814,0.072995,68536.0,68535.0,0.072994]
[1729865873218,0.433795,68536.0,68535.0,0.072994]
[1729865873813,0.3608,68536.0,68525.0,0.2103988]
[1729865874008,0.072995,68535.0,68530.0,0.073]
[1729865874208,0.073,68531.0,68530.0,0.073]
[1729865875807,0.073,68531.0,68530.0,0.2833988]
[1729865876019,0.073,68531.0,68530.0,0.6441988]
[1729865876206,0.073,68531.0,68530.0,0.2833988]
[1729865878406,0.073,68531.0,68530.0,0.21324636]
[1729865878811,0.072995,68536.0,68535.0,0.072994]
[1729865879009,0.3608,68539.0,68538.0,0.072992]
[1729865879213,0.44616,68545.0,68542.0,0.072987]
[1729865879214,0.072988,68543.0,68542.0,0.072987]
[1729865879916,0.0846,68545.0,68544.0,0.072985]
[1729865880304,0.157584,68545.0,68544.0,0.072985]
[1729865880505,0.00218905,68549.0,68543.0,0.14024636]
[1729865880812,0.00218905,68549.0,68548.0,0.072981]
[1729865881007,0.50104636,68559.0,68558.0,0.07297]
[1729865881008,0.072971,68559.0,68558.0,0.07297]
[1729865882413,0.14024636,68563.0,68555.0,0.072973]
[1729865882619,0.072972,68558.0,68557.0,0.072971]